bitfinex/quotes_SOLUSD_20250414
["timestamp","ask_amount","ask_price","bid_price","bid_amount"]
[1744659334694,45.14093952,131.31,131.3,0.063]
[1744659335003,45.14093952,131.31,131.27,0.063]
[1744659335004,45.07613357,131.28,131.27,0.063]
[1744659335224,96.92142233,131.28,131.27,0.063]
[1744659336031,104.53872233,131.28,131.27,0.063]
[1744659336528,0.14216157,131.26,131.24,0.063]
[1744659336731,82.28093952,131.25,131.24,0.063]
[1744659337717,114.3779839,131.25,131.24,0.0001]
[1744659338126,33.54334438,131.22,131.21,0.063]
[1744659339345,52.47731638,131.22,131.21,0.063]
[1744659339552,78.6842839,131.22,131.21,0.063]
[1744659342251,52.76163952,131.22,131.21,0.063]
[1744659343548,18.64964886,131.22,131.21,0.063]
[1744659343839,44.57229324,131.22,131.21,0.063]
[1744659344048,237.58,131.26,131.21,27.52664438]
[1744659344228,11.14,131.29,131.25,25.92264438]
[1744659344553,11.14,131.29,131.27,25.92264438]
[1744659345344,11.14,131.29,131.26,25.92264438]
[1744659345551,37.06264438,131.29,131.22,101.9888]
[1744659345746,11.14,131.29,131.25,25.92264438]
[1744659347233,11.14,131.29,131.25,33.54134438]
[1744659348637,0.3840588,131.28,131.25,33.54134438]
[1744659349244,0.3840588,131.28,131.27,25.92264438]
[1744659349447,0.3840588,131.28,131.27,51.84528876]
[1744659349658,0.3840588,131.28,131.27,25.92264438]
[1744659350545,0.3840588,131.28,131.26,32.58584438]
[1744659350728,0.3840588,131.28,131.27,25.92264438]
[1744659351360,0.3840588,131.28,131.27,33.54044438]
[1744659355549,0.3840588,131.28,131.25,82.937]
[1744659355720,0.3840588,131.28,131.26,7.6183]
[1744659355924,0.3840588,131.28,131.25,90.5557]
[1744659356143,0.3840588,131.28,131.25,116.47834438]
[1744659357545,0.3840588,131.28,131.24,33.54194438]
[1744659357546,33.92410318,131.28,131.24,33.54194438]
[1744659357844,33.92410318,131.28,131.24,7.6193]
[1744659358043,0.3840588,131.28,131.24,33.54194438]
[1744659358241,0.3840588,131.28,131.25,25.92264438]
[1744659359748,0.3840588,131.28,131.25,33.54114438]
[1744659361038,19.3180308,131.28,131.23,108.85964438]
[1744659361240,25.92264438,131.27,131.23,82.937]
[1744659361737,25.92264438,131.26,131.23,82.937]
[1744659362063,0.3840588,131.28,131.25,26.37984438]
[1744659362238,0.3840588,131.28,131.27,25.92264438]
[1744659362439,0.3840588,131.28,131.27,108.92264438]
[1744659363439,0.3840588,131.28,131.27,83.0]
[1744659364951,52.71581361,131.28,131.25,0.4572]
[1744659365151,0.3840588,131.28,131.25,33.99874438]
[1744659365360,0.3840588,131.28,131.25,8.0761]
[1744659365658,52.85797518,131.28,131.25,0.4572]
[1744659366756,45.24067518,131.28,131.25,0.4572]
[1744659366957,0.3840588,131.28,131.25,8.0761]
[1744659367267,11.4640588,131.28,131.25,8.0761]
[1744659367440,25.92264438,131.27,131.25,0.4572]
[1744659367860,63.65395204,131.28,131.25,0.4572]
[1744659368248,25.92264438,131.27,131.25,0.4572]
[1744659369040,56.03635204,131.28,131.25,0.4572]
[1744659369468,11.4640588,131.28,131.25,0.4572]
[1744659369670,11.4640588,131.28,131.25,26.37984438]
[1744659369850,44.85661638,131.27,131.25,0.4572]
[1744659370055,44.99877795,131.26,131.25,0.4572]
[1744659370672,25.92264438,131.26,131.25,0.4572]
[1744659371078,33.54104438,131.26,131.25,0.4572]
[1744659371444,52.61717795,131.26,131.25,0.4572]
[1744659372070,25.92264438,131.27,131.25,0.4572]
[1744659372240,0.3840588,131.28,131.26,25.92264438]
[1744659372445,0.3840588,131.28,131.27,25.92264438]
[1744659373041,0.3840588,131.28,131.27,59.46308876]
[1744659373245,0.3840588,131.28,131.27,142.46308876]
[1744659373470,0.3840588,131.28,131.27,116.54044438]
[1744659374972,0.3840588,131.28,131.27,142.46308876]
[1744659375175,5.88e-05,131.28,131.27,148.91265033]
[1744659375547,0.03,131.34,131.3,26.0]
[1744659375853,0.03,131.34,131.33,25.92264438]
[1744659377357,0.03,131.34,131.33,33.53704438]
[1744659379065,0.03,131.34,131.32,33.53734438]
[1744659379676,0.03,131.34,131.31,33.53794438]
[1744659379971,0.03,131.34,131.32,25.92264438]
[1744659380752,25.95264438,131.34,131.3,83.0]
[1744659380954,25.92264438,131.33,131.29,25.92264438]
[1744659381160,25.92264438,131.33,131.28,33.53994438]
[1744659381351,25.92264438,131.33,131.29,25.92264438]
[1744659381749,0.03,131.34,131.27,83.0]
[1744659381750,25.92264438,131.31,131.27,83.0]
[1744659381952,25.92264438,131.3,131.25,25.92264438]
[1744659382375,25.92264438,131.29,131.24,33.54224438]
[1744659382560,25.92264438,131.29,131.24,116.54224438]
[1744659382766,37.00264438,131.32,131.27,25.92264438]
[1744659382954,0.03,131.34,131.31,25.92264438]
[1744659383152,0.03,131.34,131.33,25.92264438]
[1744659383866,0.03,131.34,131.33,134.98745033]
[1744659384064,0.03,131.35,131.33,134.98745033]
[1744659384065,0.03,131.35,131.34,83.14216157]
[1744659384262,0.03,131.41,131.39,25.92264438]
[1744659384568,0.03,131.41,131.38,25.92264438]
[1744659385271,0.03,131.41,131.38,39.33454496]
[1744659385470,0.03,131.41,131.38,46.94574496]
[1744659385669,0.03,131.41,131.38,39.33454496]
[1744659386269,39.36454496,131.41,131.36,39.33454496]
[1744659386474,39.33454496,131.39,131.34,122.33454496]
[1744659386975,39.33454496,131.39,131.35,39.33454496]
[1744659387371,46.94584496,131.39,131.34,129.94814496]
[1744659387572,39.33454496,131.4,131.36,39.33454496]
[1744659387879,39.33454496,131.4,131.35,39.33454496]
[1744659388066,46.94504496,131.4,131.36,39.33454496]
[1744659389879,46.94504496,131.4,131.35,46.94734496]
[1744659390080,39.33454496,131.39,131.34,129.94814496]
[1744659390958,7.6105,131.4,131.34,129.94814496]
[1744659390959,46.94504496,131.4,131.35,39.33454496]
[1744659391572,46.94504496,131.4,131.35,46.94764496]
[1744659392360,46.94504496,131.4,131.36,39.33454496]
[1744659392560,65.90851696,131.41,131.36,39.33454496]
[1744659392754,39.33454496,131.4,131.35,39.33454496]
[1744659393274,46.94524496,131.4,131.35,46.94764496]
[1744659393473,0.03,131.41,131.38,39.33454496]
[1744659393676,0.03,131.41,131.4,39.33454496]
[1744659393888,0.03,131.41,131.4,161.66908992]
[1744659394262,0.03,131.41,131.4,83.0]
[1744659394461,0.03,131.41,131.4,122.33454496]
[1744659394872,0.03,131.41,131.4,161.66908992]
[1744659395073,0.03,131.41,131.4,129.94484496]
[1744659396174,0.03,131.41,131.4,83.0]
[1744659396558,0.03,131.41,131.4,129.94484496]
[1744659397370,0.03,131.41,131.38,39.33454496]
[1744659397876,0.03,131.41,131.37,129.94634496]
[1744659398279,39.36454496,131.41,131.37,122.33454496]
[1744659398660,39.36454496,131.41,131.37,129.94644496]
[1744659399277,0.03,131.41,131.38,39.33454496]
[1744659399679,0.03,131.41,131.38,46.94574496]
[1744659400387,0.03,131.41,131.38,7.6112]
[1744659400884,0.03,131.41,131.37,129.94634496]
[1744659401264,0.03,131.41,131.38,39.33454496]
[1744659401466,0.03,131.41,131.38,46.94564496]
[1744659401991,0.03,131.41,131.4,39.33454496]
[1744659402576,0.03,131.41,131.39,39.33454496]
[1744659403286,0.03,131.41,131.4,39.33454496]
[1744659403478,0.03,131.41,131.4,46.94484496]
[1744659404874,0.03,131.41,131.39,46.94524496]
[1744659405373,0.03,131.41,131.4,25.92923254]
[1744659405575,0.03,131.41,131.4,33.53953254]
[1744659405788,0.03,131.41,131.39,26.38643254]
[1744659406007,44.6088814,131.41,131.39,0.4572]
[1744659407195,25.92923254,131.4,131.39,0.4572]
[1744659407885,33.53953254,131.4,131.39,0.4572]
[1744659409372,52.47350454,131.4,131.39,0.4572]
[1744659409572,59.40962768,131.4,131.39,0.4572]
[1744659409773,18.64964886,131.36,131.31,83.0]
[1744659409998,25.92923254,131.34,131.31,83.0]
[1744659410373,25.92923254,131.34,131.31,90.6154]
[1744659410577,25.92923254,131.35,131.31,83.0]
[1744659410777,25.92923254,131.34,131.31,83.0]
[1744659411386,18.933972,131.36,131.31,116.54473254]
[1744659411587,44.86320454,131.36,131.31,116.54473254]
[1744659412104,32.58103254,131.4,131.35,25.92923254]
[1744659412286,12.8826,131.41,131.37,25.92923254]
[1744659412287,37.19923254,131.41,131.37,25.92923254]
[1744659412799,44.80903254,131.41,131.37,25.92923254]
[1744659413003,44.80903254,131.41,131.36,25.92923254]
[1744659413885,44.80903254,131.41,131.36,33.54183254]
[1744659414797,18.8798,131.41,131.36,33.54183254]
[1744659414999,44.80903254,131.41,131.36,33.54183254]
[1744659415893,11.27,131.41,131.37,25.92923254]
[1744659416193,0.03,131.41,131.4,25.92923254]
[1744659416580,0.0001,131.41,131.4,135.00062665]
[1744659416798,0.0001,131.41,131.4,134.85846508]
[1744659418907,0.0001,131.41,131.4,142.46876508]
[1744659419791,0.0001,131.41,131.4,116.53953254]
[1744659421379,0.0001,131.41,131.4,90.6103]
[1744659421588,0.0001,131.41,131.4,116.53953254]
[1744659422493,0.0001,131.41,131.4,90.6103]
[1744659422686,0.0001,131.41,131.4,116.53953254]
[1744659423115,0.0001,131.41,131.38,83.0]
[1744659423296,25.92933254,131.41,131.38,83.0]
[1744659423494,11.16,131.45,131.4,1.0]
[1744659423693,25.92923254,131.44,131.42,1.0]
[1744659423996,37.08923254,131.45,131.42,1.0]
[1744659424219,25.92923254,131.43,131.4,1.0]
[1744659424510,25.92923254,131.43,131.39,1.0]
[1744659424682,25.92923254,131.43,131.4,1.0]
[1744659424877,25.92923254,131.43,131.39,1.0]
[1744659425082,25.92923254,131.43,131.4,1.0]
[1744659425510,33.53793254,131.43,131.4,1.0]
[1744659426194,25.92923254,131.41,131.38,84.0]
[1744659426508,25.92923254,131.41,131.39,1.0]
[1744659427004,25.92923254,131.42,131.39,1.0]
[1744659427308,26.25834886,131.43,131.38,84.0]
[1744659427609,25.92923254,131.39,131.37,1.0]
[1744659427990,37.08923254,131.4,131.37,1.0]
[1744659428185,25.92923254,131.39,131.36,1.0]
[1744659428911,37.08923254,131.4,131.37,1.0]
[1744659429707,6.3451,131.44,131.41,1.0]
[1744659429909,37.08923254,131.43,131.41,1.0]
[1744659430114,37.08923254,131.43,131.4,1.0]
[1744659430410,25.92923254,131.42,131.4,1.0]
[1744659431718,37.08923254,131.43,131.4,8.6102]
[1744659431926,11.16,131.43,131.41,1.0]
[1744659432113,11.16,131.43,131.42,1.0]
[1744659432496,25.92923254,131.46,131.44,1.0]
[1744659432793,11.16,131.47,131.45,1.0]
[1744659433014,0.03,131.47,131.46,8.6067]
[1744659433207,0.03,131.47,131.46,34.53593254]
[1744659434206,0.03,131.47,131.45,1.0]
[1744659434523,0.03,131.47,131.46,1.0]
[1744659435514,0.03,131.47,131.44,1.0]
[1744659435515,25.95923254,131.47,131.44,1.0]
[1744659435819,0.03,131.47,131.45,1.0]
[1744659436000,0.03,131.47,131.46,1.0]
[1744659436493,0.03,131.47,131.43,109.92923254]
[1744659436713,25.95923254,131.47,131.43,109.92923254]
[1744659436894,37.08923254,131.46,131.43,1.0]
[1744659437093,44.69653254,131.46,131.43,1.0]
[1744659437814,25.92923254,131.45,131.42,1.0]
[1744659438192,18.7673,131.46,131.42,1.0]
[1744659438396,18.7673,131.46,131.43,1.0]
[1744659438397,44.69653254,131.46,131.43,1.0]
[1744659439444,0.03,131.47,131.46,1.0]
[1744659439721,0.03,131.47,131.46,26.92923254]
[1744659440302,0.03,131.47,131.45,1.0]
[1744659440522,0.03,131.47,131.43,96.9138]
[1744659440523,0.03,131.47,131.46,1.0]
[1744659443027,0.03,131.47,131.45,1.0]
[1744659443225,0.03,131.47,131.46,1.0]
[1744659443435,25.95923254,131.47,131.44,1.0]
[1744659446232,0.03,131.47,131.44,1.0]
[1744659446431,0.03,131.47,131.45,1.0]
[1744659446832,0.03,131.47,131.46,1.0]
[1744659448029,0.03,131.47,131.45,1.0]
[1744659449455,25.95923254,131.47,131.43,83.0]
[1744659449938,25.95923254,131.47,131.39,6.4024]
[1744659449939,25.92923254,131.44,131.39,0.063]
[1744659450152,7.6097,131.41,131.39,1.063]
[1744659450525,33.53813254,131.43,131.4,1.0]
[1744659450732,44.65743254,131.44,131.4,1.0]
[1744659451923,25.92923254,131.46,131.41,26.92923254]
[1744659452253,0.03,131.47,131.43,26.92923254]
[1744659452457,7.6363,131.47,131.43,26.92923254]
[1744659452844,7.6363,131.47,131.43,34.53773254]
[1744659453439,0.03,131.47,131.44,26.92923254]
[1744659453828,0.03,131.47,131.44,1.0]
[1744659454477,25.92923254,131.45,131.41,85.5975]
[1744659454629,25.92923254,131.45,131.42,1.0]
[1744659454832,25.92923254,131.44,131.41,84.0]
[1744659455053,25.92923254,131.44,131.41,1.0]
[1744659456061,25.92923254,131.45,131.42,1.0]
[1744659456365,33.53673254,131.45,131.42,1.0]
[1744659457256,7.6069,131.46,131.42,25.92923254]
[1744659457567,7.6365,131.47,131.44,1.0]
[1744659457764,0.03,131.47,131.44,1.0]
[1744659457934,25.95923254,131.47,131.44,1.0]
[1744659458337,33.56553254,131.47,131.44,1.0]
[1744659458843,7.6363,131.47,131.44,1.0]
[1744659459159,33.56553254,131.47,131.43,1.0]
[1744659459363,25.92923254,131.46,131.44,1.0]
[1744659459863,33.56553254,131.47,131.44,1.0]
[1744659460056,33.56553254,131.47,131.42,26.92923254]
[1744659460255,33.56553254,131.47,131.44,1.0]
[1744659460451,33.56553254,131.47,131.43,1.0]
[1744659460660,33.56553254,131.47,131.42,26.92923254]
[1744659460957,33.56553254,131.47,131.45,1.0]
[1744659462158,25.92923254,131.46,131.41,84.0]
[1744659462363,25.92923254,131.44,131.42,1.0]
[1744659462859,7.6086,131.43,131.42,1.0]
[1744659463859,33.53633254,131.46,131.42,1.0]
[1744659464063,0.03,131.47,131.45,1.0]
[1744659464959,0.03,131.47,131.46,1.0]
[1744659465161,0.03,131.47,131.45,1.0]
[1744659465462,0.03,131.47,131.46,1.0]
[1744659466850,0.03,131.47,131.45,1.0]
[1744659467058,0.03,131.47,131.46,1.0]
[1744659468371,0.03,131.47,131.44,1.0]
[1744659468372,25.95923254,131.47,131.44,1.0]
[1744659468572,25.92923254,131.46,131.45,1.0]
[1744659468776,25.95923254,131.47,131.45,1.0]
[1744659468952,25.92923254,131.46,131.45,1.0]
[1744659469272,33.56603254,131.47,131.45,1.0]
[1744659469979,33.56553254,131.47,131.45,1.0]
[1744659470575,0.03,131.47,131.45,1.0]
[1744659470954,25.95923254,131.47,131.45,1.0]
[1744659471154,16.22775631,131.47,131.45,1.0]
[1744659471369,23.83405631,131.47,131.45,1.0]
[1744659471568,0.03,131.47,131.45,1.0]
[1744659472779,16.22775631,131.47,131.45,1.0]
[1744659473087,23.83435631,131.47,131.45,1.0]
[1744659473292,51.18732305,131.46,131.41,84.0]
[1744659473473,16.19775631,131.42,131.41,1.0]
[1744659473665,27.31775631,131.43,131.41,1.0]
[1744659473963,27.31775631,131.43,131.42,1.0]
[1744659474380,27.31775631,131.43,131.41,1.0]
[1744659474584,16.19775631,131.42,131.41,1.0]
[1744659474891,11.12,131.43,131.41,1.0]
[1744659475183,34.92635631,131.43,131.41,1.0]
[1744659475489,11.12,131.43,131.42,1.0]
[1744659475649,0.03,131.47,131.46,1.0]
[1744659475974,0.03,131.47,131.46,17.19775631]
[1744659477255,0.03,131.47,131.46,24.80455631]
[1744659477974,0.03,131.47,131.46,41.00231262]
[1744659479160,0.03,131.47,131.46,60.39291766]
[1744659479362,0.03,131.47,131.46,34.49985883]
[1744659481284,0.03,131.47,131.46,8.6068]
[1744659481478,0.03,131.47,131.46,117.49985883]
[1744659481782,0.03,131.47,131.46,109.89305883]
[1744659482279,0.03,131.47,131.46,143.39291766]
[1744659482764,0.03,131.47,131.46,117.49985883]
[1744659487282,0.03,131.47,131.46,34.49985883]
[1744659487660,0.03,131.47,131.46,60.39291766]
[1744659489577,0.03,131.55,131.46,143.96156394]
[1744659489785,0.03,131.55,131.53,1.0]
[1744659490080,0.03,131.55,131.54,1.0]
[1744659491183,25.92305883,131.55,131.54,1.0]
[1744659491377,33.52465883,131.55,131.53,1.0]
[1744659491683,0.03,131.55,131.54,1.0]
[1744659492358,0.03,131.55,131.53,1.0]
[1744659492563,0.03,131.55,131.54,1.0]
[1744659493078,0.03,131.55,131.52,7.6031]
[1744659493479,0.03,131.55,131.52,33.49615883]
[1744659494173,0.03,131.55,131.52,7.6031]
[1744659494359,0.03,131.55,131.51,116.49675883]
[1744659494564,25.89305883,131.54,131.51,83.0]
[1744659494778,25.89305883,131.53,131.51,83.0]
[1744659495287,25.89305883,131.53,131.49,33.49795883]
[1744659495580,25.89305883,131.53,131.49,25.89305883]
[1744659496483,33.49565883,131.54,131.49,25.89305883]
[1744659496791,0.03,131.55,131.51,25.89305883]
[1744659497086,33.52485883,131.55,131.5,25.89305883]
[1744659497586,25.92305883,131.55,131.51,7.6039]
[1744659497976,25.92305883,131.55,131.51,33.49695883]
[1744659498383,0.03,131.55,131.51,33.49695883]
[1744659498671,25.89305883,131.54,131.49,25.89305883]
[1744659499083,25.89305883,131.54,131.49,108.89305883]
[1744659499389,16.18071565,131.54,131.49,99.18071565]
[1744659499571,23.78421565,131.52,131.47,1.6054]
[1744659499773,16.18071565,131.49,131.48,30.0]
[1744659500772,16.18071565,131.5,131.46,16.18071565]
[1744659501494,16.18071565,131.5,131.45,23.78791565]
[1744659501698,23.78541565,131.5,131.45,23.78791565]
[1744659501870,16.18071565,131.5,131.45,23.78791565]
[1744659502199,23.78531565,131.5,131.45,23.78791565]
[1744659502399,16.18071565,131.49,131.44,100.72641565]
[1744659502691,16.18071565,131.5,131.45,16.18071565]
[1744659502885,16.18071565,131.5,131.46,16.18071565]
[1744659504191,16.18071565,131.5,131.46,23.78721565]
[1744659504396,19.0345,131.55,131.48,16.18071565]
[1744659504582,23.78291565,131.54,131.49,16.18071565]
[1744659504895,16.18071565,131.52,131.47,16.18071565]
[1744659505075,16.18071565,131.52,131.48,16.18071565]
[1744659505275,16.18071565,131.52,131.47,16.18071565]
[1744659505470,7.6317,131.55,131.5,16.18071565]
[1744659505675,0.03,131.55,131.5,16.18071565]
[1744659505889,16.21071565,131.55,131.5,16.18071565]
[1744659506092,16.18071565,131.54,131.5,23.78491565]
[1744659506271,16.18071565,131.54,131.5,16.18071565]
[1744659506478,16.18071565,131.53,131.49,23.78551565]
[1744659506811,0.03,131.55,131.52,16.18071565]
[1744659506979,0.03,131.55,131.54,16.18071565]
[1744659508197,0.03,131.55,131.54,23.78291565]
[1744659508395,0.03,131.55,131.53,23.78321565]
[1744659508673,0.03,131.55,131.52,7.6031]
[1744659508890,0.03,131.55,131.53,16.18071565]
[1744659509498,0.03,131.55,131.54,16.18071565]
[1744659509699,0.03,131.55,131.53,16.18071565]
[1744659510109,0.03,131.55,131.51,7.6037]
[1744659510405,0.03,131.55,131.51,23.78441565]
[1744659510609,0.03,131.55,131.52,16.18071565]
[1744659510774,0.03,131.55,131.54,16.18071565]
[1744659511110,0.03,131.55,131.52,16.18071565]
[1744659512411,0.03,131.55,131.52,23.78391565]
[1744659512706,0.03,131.55,131.51,106.78431565]
[1744659513401,0.03,131.55,131.52,16.18071565]
[1744659513591,0.03,131.55,131.53,16.18071565]
[1744659513792,0.03,131.55,131.54,16.18071565]
[1744659514009,0.03,131.55,131.54,99.18071565]
[1744659514309,0.03,131.55,131.54,106.78291565]
[1744659517811,0.03,131.55,131.54,90.6022]
[1744659518015,0.03,131.55,131.54,106.78291565]
[1744659518308,2.6743489,131.56,131.55,82.9999]
[1744659518512,4.89e-05,131.56,131.55,136.91834922]
[1744659518712,4.89e-05,131.56,131.55,117.98437722]
[1744659519088,4.89e-05,131.56,131.55,117.84221565]
[1744659521799,4.89e-05,131.56,131.55,117.98437722]
[1744659522316,4.89e-05,131.56,131.55,118.41086193]
[1744659522491,0.03,131.59,131.58,16.18071565]
[1744659523408,0.03,131.6,131.58,32.50359287]
[1744659523713,0.03,131.6,131.59,23.78001565]
[1744659526207,0.03,131.6,131.58,82.9999]
[1744659526409,0.03,131.6,131.56,16.18071565]
[1744659526410,16.21071565,131.6,131.57,7.6005]
[1744659527197,16.21071565,131.6,131.56,7.6008]
[1744659527815,16.21071565,131.6,131.56,16.18071565]
[1744659529198,16.21071565,131.6,131.56,23.78121565]
[1744659529613,0.03,131.6,131.59,16.18071565]
[1744659531305,0.03,131.6,131.59,23.78001565]
[1744659533517,0.03,131.6,131.59,7.5993]
[1744659533909,0.03,131.6,131.59,23.78001565]
[1744659534901,0.03,131.6,131.59,53.78001565]
[1744659535799,0.03,131.6,131.59,37.5993]
[1744659536001,0.03,131.6,131.59,53.78001565]
[1744659536396,0.03,131.61,131.59,53.78001565]
[1744659536616,0.03,131.61,131.6,16.18071565]
[1744659536814,0.03,131.61,131.6,46.18071565]
[1744659537405,0.03,131.61,131.6,53.77941565]
[1744659537610,0.03,131.61,131.6,55.33601565]
[1744659538744,0.03,131.61,131.6,138.90456193]
[1744659538745,0.0001,131.61,131.6,138.90456193]
[1744659539236,0.03,131.66,131.65,16.18071565]
[1744659539608,0.03,131.66,131.65,23.77651565]
[1744659539811,0.03,131.66,131.65,53.77651565]
[1744659540338,0.03,131.66,131.65,37.5958]
[1744659540634,16.21071565,131.66,131.63,7.5967]
[1744659540801,16.21071565,131.66,131.65,24.18751565]
[1744659540802,0.03,131.66,131.65,24.18751565]
[1744659541418,0.0001,131.68,131.66,18.933972]
[1744659541620,0.0001,131.68,131.67,24.20190036]
[1744659542303,0.0001,131.69,131.68,51.15324173]
[1744659542508,0.0001,131.69,131.68,99.18061565]
[1744659543638,0.0001,131.69,131.68,106.91687722]
[1744659544421,0.0001,131.69,131.68,123.52407758]
[1744659544611,0.0001,131.69,131.68,142.17372644]
[1744659544936,0.0001,131.69,131.68,106.91687722]
[1744659546235,0.0001,131.69,131.68,137.34336193]
[1744659546734,0.0001,131.69,131.68,136.77471565]
[1744659547233,0.0001,131.69,131.68,53.77481565]
[1744659547634,0.0001,131.69,131.68,23.77481565]
[1744659547936,0.0001,131.69,131.67,16.18071565]
[1744659548430,0.0001,131.69,131.66,82.9999]
[1744659548729,0.0001,131.69,131.68,16.18071565]
[1744659549227,0.0001,131.69,131.67,16.18071565]
[1744659549832,0.0001,131.69,131.67,23.77541565]
[1744659550942,0.0001,131.69,131.66,82.9999]
[1744659551239,0.0001,131.69,131.65,16.18071565]
[1744659551415,0.0001,131.69,131.65,90.5957]
[1744659551618,0.0001,131.69,131.66,16.18071565]
[1744659552057,0.0001,131.69,131.68,16.18071565]
[1744659552312,0.0001,131.69,131.67,16.18071565]
[1744659553248,0.0001,131.69,131.66,7.5949]
[1744659553415,0.0001,131.69,131.67,23.77531565]
[1744659553819,0.0001,131.69,131.66,16.18071565]
[1744659554117,16.18071565,131.68,131.65,90.5957]
[1744659554344,16.18081565,131.69,131.65,7.5958]
[1744659555447,16.18081565,131.69,131.65,23.77651565]
[1744659555845,23.77441565,131.69,131.65,23.77651565]
[1744659556049,23.77441565,131.69,131.65,7.5958]
[1744659556234,16.18071565,131.68,131.64,7.5961]
[1744659556636,16.18071565,131.65,131.6,82.9999]
[1744659556836,16.18071565,131.65,131.61,16.18071565]
[1744659557143,16.18071565,131.66,131.61,16.18071565]
[1744659557318,16.18071565,131.65,131.61,23.77861565]
[1744659557726,16.18071565,131.66,131.61,23.77861565]
[1744659557931,23.77561565,131.67,131.62,16.18071565]
[1744659558344,16.18071565,131.66,131.61,23.77861565]
[1744659558654,23.77601565,131.66,131.61,23.77861565]
[1744659558957,23.77601565,131.66,131.61,16.18071565]
[1744659559129,16.18071565,131.65,131.6,16.18071565]
[1744659559456,7.5953,131.66,131.59,90.6619]
[1744659559457,16.18071565,131.64,131.59,106.84261565]
[1744659560458,23.77721565,131.64,131.59,106.84261565]
[1744659560926,23.77681565,131.65,131.6,16.18071565]
[1744659561124,6.6505,131.69,131.64,16.18071565]
[1744659561322,14.2442,131.69,131.65,16.18071565]
[1744659561552,30.42491565,131.69,131.64,16.18071565]
[1744659562079,16.18071565,131.68,131.64,16.18071565]
[1744659562254,30.42491565,131.69,131.64,16.18071565]
[1744659562426,30.42491565,131.69,131.64,23.77691565]
[1744659563152,6.6505,131.69,131.65,16.18071565]
[1744659563539,6.6505,131.69,131.66,16.18071565]
[1744659564048,6.6505,131.69,131.65,16.18071565]
[1744659564761,6.6505,131.69,131.66,7.5953]
[1744659564963,0.0001,131.69,131.68,16.18071565]
[1744659565368,0.0001,131.69,131.66,26.5836]
[1744659565369,0.0001,131.69,131.66,7.5953]
[1744659565535,0.0001,131.69,131.66,23.77601565]
[1744659565737,0.0001,131.69,131.68,16.18071565]
[1744659566654,0.0001,131.69,131.68,23.77481565]
[1744659570340,0.0001,131.69,131.68,106.91697722]
[1744659570560,0.0001,131.69,131.68,123.52417758]
[1744659570752,0.0001,131.69,131.68,107.34346193]
[1744659571574,0.03,131.75,131.69,0.42648471]
[1744659571742,0.03,131.75,131.73,16.18071565]
[1744659571942,0.03,131.75,131.74,16.18071565]
[1744659572669,0.03,131.75,131.71,26.5726]
[1744659572670,0.03,131.75,131.73,16.18071565]
[1744659572962,0.03,131.75,131.72,16.18071565]
[1744659573259,0.03,131.75,131.71,7.5924]
[1744659573260,16.21071565,131.75,131.71,7.5924]
[1744659573467,0.03,131.75,131.71,7.5924]
[1744659573642,16.21071565,131.75,131.71,7.5924]
[1744659573844,0.03,131.75,131.71,23.77311565]
[1744659574541,16.21071565,131.75,131.71,7.5924]
[1744659575263,34.97252608,131.74,131.65,7.5958]
[1744659575451,16.18071565,131.7,131.66,30.0]
[1744659575840,16.18071565,131.7,131.65,23.77651565]
[1744659576041,28.2363,131.75,131.69,16.18071565]
[1744659576042,7.6206,131.75,131.69,16.18071565]
[1744659576258,16.18071565,131.74,131.69,16.18071565]
[1744659576758,7.6206,131.75,131.66,0.14216157]
[1744659577067,16.18071565,131.74,131.69,16.18071565]
[1744659577449,23.77181565,131.74,131.69,23.77421565]
[1744659577648,7.6204,131.75,131.71,16.18071565]
[1744659577848,23.80111565,131.75,131.7,16.18071565]
[1744659578656,0.03,131.75,131.71,16.18071565]
[1744659579744,23.80081565,131.75,131.7,16.18071565]
[1744659580944,0.03,131.75,131.71,23.77301565]